bitfinex/quotes_SOLUSD_20230120
["timestamp","ask_amount","ask_price","bid_price","bid_amount"]
[1674194575106,0.96,21.022,21.01,159.4987]
[1674194575816,0.96,21.021,21.01,159.4987]
[1674194576573,0.96,21.02,21.01,159.4987]
[1674194576777,0.96,21.019,21.01,159.4987]
[1674194576987,10.0,21.032,21.01,179.8387]
[1674194577200,35.66,21.033,21.011,21.92]
[1674194577405,45.66,21.034,21.012,35.7]
[1674194577623,45.66,21.034,21.014,10.0]
[1674194577835,45.66,21.034,21.016,10.0]
[1674194578148,45.66,21.034,21.017,55.69]
[1674194578375,45.66,21.034,21.018,10.0]
[1674194578567,35.65,21.039,21.02,10.0]
[1674194578886,59.2166,21.043,21.02,10.0]
[1674194578887,20.0,21.038,21.021,35.68]
[1674194579425,10.0,21.04,21.021,35.68]
[1674194579730,55.65,21.039,21.021,116.0863]
[1674194579913,10.0,21.038,21.022,10.0]
[1674194580124,56.61,21.037,21.022,10.0]
[1674194580335,56.61,21.037,21.021,116.0863]
[1674194580336,10.0,21.035,21.021,116.0863]
[1674194580549,10.0,21.033,21.021,116.0863]
[1674194580759,18.92,21.032,21.021,116.0863]
[1674194580988,17.96,21.032,21.021,116.0863]
[1674194581198,0.96,21.032,21.022,10.0]
[1674194581707,17.0,21.033,21.022,10.0]
[1674194582336,0.96,21.032,21.021,116.0863]
[1674194583177,0.96,21.031,21.021,116.0863]
[1674194583412,0.96,21.03,21.021,116.0863]
[1674194583603,0.96,21.029,21.021,116.0863]
[1674194584349,0.96,21.028,21.021,116.0863]
[1674194584575,0.96,21.027,21.021,116.0863]
[1674194584750,0.96,21.026,21.021,116.0863]
[1674194587081,17.0,21.033,21.021,116.0863]
[1674194587270,52.66,21.033,21.021,116.0863]
[1674194588029,17.0,21.033,21.022,10.0]
[1674194588237,17.0,21.034,21.022,10.0]
[1674194588451,35.66,21.033,21.022,10.0]
[1674194588638,17.0,21.032,21.022,10.0]
[1674194589072,1.92,21.031,21.022,10.0]
[1674194590341,16.92,21.032,21.022,10.0]
[1674194590532,35.66,21.035,21.022,10.0]
[1674194590737,35.66,21.035,21.021,116.0863]
[1674194591063,35.66,21.035,21.022,10.0]
[1674194591486,10.0,21.034,21.021,116.0863]
[1674194592417,18.92,21.033,21.021,116.0863]
[1674194593177,18.92,21.033,21.022,10.0]
[1674194593797,18.92,21.033,21.021,116.0863]
[1674194597277,35.66,21.035,21.021,116.0863]
[1674194597499,35.66,21.036,21.022,10.0]
[1674194598652,18.92,21.035,21.022,10.0]
[1674194599072,18.92,21.035,21.021,116.0863]
[1674194599280,10.0,21.034,21.021,116.0863]
[1674194599493,18.92,21.033,21.021,116.0863]
[1674194603492,0.96,21.032,21.021,116.0863]
[1674194605375,10.0,21.031,21.015,144.8711]
[1674194605613,10.0,21.029,21.015,109.1811]
[1674194605830,10.0,21.027,21.015,109.1811]
[1674194606145,18.92,21.026,21.015,109.1811]
[1674194608029,42.67576951,21.026,21.012,35.7]
[1674194608245,42.67576951,21.026,21.01,113.7987]
[1674194608246,10.0,21.024,21.01,113.7987]
[1674194608433,53.64,21.023,21.01,113.7987]
[1674194608649,10.0,21.022,21.001,149.4189]
[1674194608978,36.64,21.021,21.002,20.0]
[1674194609191,54.6,21.021,21.003,35.71]
[1674194609503,92.89153902,21.02,21.003,35.71]
[1674194609698,54.61,21.019,21.001,149.4189]
[1674194609909,20.0,21.018,21.001,149.4189]
[1674194610240,10.0,21.016,21.001,149.4189]
[1674194610430,18.92,21.015,21.001,149.4189]
[1674194610635,10.0,21.014,21.001,149.4189]
[1674194610851,18.92,21.013,21.001,149.4189]
[1674194612954,18.92,21.013,21.001,113.6989]
[1674194613785,18.92,21.013,20.999,113.7987]
[1674194614019,10.0,21.012,20.999,113.7987]
[1674194614231,18.92,21.011,20.999,113.7987]
[1674194614651,10.0,21.01,20.996,35.72]
[1674194614867,18.92,21.009,20.997,20.0]
[1674194615076,10.0,21.008,20.997,20.0]
[1674194615273,18.92,21.007,20.997,20.0]
[1674194615693,18.92,21.007,20.996,35.72]
[1674194615892,18.92,21.007,20.995,154.6528]
[1674194616108,18.92,21.007,20.995,35.73]
[1674194616334,18.92,21.007,20.992,46.92706671]
[1674194616534,18.92,21.007,20.993,35.73]
[1674194616759,18.92,21.007,20.993,45.73]
[1674194616954,10.0,21.006,20.993,35.73]
[1674194617278,18.92,21.005,20.992,35.73]
[1674194617684,10.0,21.004,20.992,35.73]
[1674194617915,18.92,21.003,20.991,35.73]
[1674194618642,18.92,21.003,20.991,45.73]
[1674194618845,18.92,21.003,20.991,35.73]
[1674194619271,18.92,21.003,20.991,45.73]
[1674194619691,1.92,21.003,20.992,10.0]
[1674194619906,1.92,21.003,20.993,35.73]
[1674194620117,0.96,21.003,20.993,35.73]
[1674194620331,0.96,21.004,20.992,45.73]
[1674194620744,10.0,21.01,20.992,45.73]
[1674194620954,35.7,21.013,20.993,20.0]
[1674194621160,35.69,21.015,20.995,10.0]
[1674194621390,35.69,21.015,20.996,55.72]
[1674194621586,35.69,21.015,20.997,10.0]
[1674194621798,35.69,21.015,20.998,55.72]
[1674194622007,35.69,21.015,20.999,10.0]
[1674194622529,35.69,21.015,20.999,123.7024]
[1674194622737,35.69,21.015,20.999,113.7024]
[1674194623053,10.0,21.012,20.999,113.7024]
[1674194623487,18.92,21.011,20.999,113.7024]
[1674194624307,30.0,21.01,20.995,45.73]
[1674194624522,18.92,21.009,20.993,35.73]
[1674194624735,55.7,21.008,20.992,45.73]
[1674194624949,18.92,21.007,20.992,45.73]
[1674194625996,25.38,21.02,20.992,58.60299734]
[1674194626205,25.38,21.02,20.993,20.0]
[1674194626419,122.89416951,21.018,20.994,35.73]
[1674194626631,122.89416951,21.018,20.995,30.0]
[1674194626843,10.0,21.014,20.996,35.72]
[1674194627053,10.0,21.012,20.997,20.0]
[1674194627475,18.92,21.011,20.997,20.0]
[1674194627891,10.0,21.01,20.996,20.0]
[1674194628097,18.92,21.009,20.996,20.0]
[1674194628317,18.92,21.009,20.995,35.73]
[1674194628525,18.92,21.009,20.996,20.0]
[1674194628741,18.92,21.009,20.995,20.0]
[1674194629988,1.92,21.009,20.997,10.0]
[1674194630201,35.7,21.013,20.998,20.0]
[1674194630410,23.75576951,21.014,20.998,20.0]
[1674194630944,10.0,21.013,20.997,10.0]
[1674194631158,55.7,21.012,20.997,10.0]
[1674194631567,18.92,21.011,20.997,10.0]
[1674194631806,20.0,21.01,20.997,10.0]
[1674194632015,18.92,21.009,20.997,10.0]
[1674194632230,20.0,21.008,20.997,10.0]
[1674194632424,18.92,21.007,20.996,10.0]
[1674194632856,18.92,21.007,20.995,35.73]
[1674194633064,18.92,21.007,20.994,10.0]
[1674194635995,35.7,21.011,20.994,10.0]
[1674194636201,4.57999,21.013,20.995,55.73]
[1674194636432,4.57999,21.013,20.996,10.0]
[1674194636644,4.57999,21.013,20.997,55.72]
[1674194636963,4.57999,21.013,20.998,10.0]
[1674194637673,18.92,21.012,21.0,10.0]
[1674194638219,4.57999,21.013,21.0,10.0]
[1674194638438,35.69,21.016,21.0,10.0]
[1674194639804,10.0,21.015,21.0,10.0]
[1674194639995,36.65,21.014,21.0,10.0]
[1674194640213,0.96,21.013,20.999,235.1552]
[1674194640530,0.96,21.012,20.996,10.0]
[1674194640727,35.7,21.011,20.996,10.0]
[1674194640939,37.96,21.01,20.996,10.0]
[1674194641167,36.66,21.009,20.996,10.0]
[1674194641364,37.96,21.008,20.993,10.0]
[1674194641566,0.96,21.007,20.993,10.0]
[1674194642851,0.96,21.006,20.993,10.0]
[1674194643068,0.96,21.005,20.991,45.73]
[1674194643286,36.67,21.004,20.991,10.0]
[1674194643496,17.96,21.003,20.991,10.0]
[1674194643808,0.96,21.002,20.991,10.0]
[1674194644021,0.96,21.001,20.99,113.5029]
[1674194644223,0.96,21.0,20.99,113.5029]
[1674194644411,0.96,20.999,20.99,113.5029]
[1674194644621,0.96,20.998,20.99,113.5029]
[1674194645070,0.96,20.997,20.99,113.5029]
[1674194645284,0.96,20.996,20.99,113.5029]
[1674194646325,17.0,21.001,20.99,113.5029]
[1674194646533,1.92,21.0,20.99,113.5029]
[1674194646967,1.92,21.0,20.991,10.0]
[1674194647892,1.92,21.0,20.99,113.5029]
[1674194648955,11.92,21.0,20.99,113.5029]
[1674194649171,17.0,20.999,20.99,113.5029]
[1674194649364,1.92,20.998,20.99,113.5029]
[1674194652941,1.92,20.998,20.985,47.0948261]
[1674194653151,59.47576951,20.997,20.978,149.1602]
[1674194653478,18.92,20.996,20.978,149.1602]
[1674194653668,35.73,20.995,20.979,10.0]
[1674194653888,28.92,20.994,20.979,10.0]
[1674194654319,28.92,20.994,20.978,113.4002]
[1674194654950,64.65,20.994,20.978,113.4002]
[1674194656426,15.4,20.99,20.978,113.4002]
[1674194656759,10.0,20.988,20.978,113.4002]
[1674194657070,0.96,20.987,20.971,35.77]
[1674194657282,0.96,20.986,20.97,35.77]
[1674194657492,0.96,20.985,20.97,151.9853]
[1674194657688,0.96,20.985,20.969,75.6346855]
[1674194657689,15.43,20.98,20.969,75.6346855]
[1674194657905,20.00999,20.98,20.969,75.6346855]
[1674194658099,18.92,20.979,20.969,75.6346855]
[1674194658627,14.57999,20.978,20.969,75.6346855]
[1674194658855,54.68,20.977,20.969,75.6346855]
[1674194659173,10.0,20.976,20.969,75.6346855]
[1674194659369,18.92,20.975,20.969,75.6346855]
[1674194659592,40.33999,20.974,20.969,75.6346855]
[1674194659918,28.92,20.973,20.969,75.6346855]
[1674194660751,18.92,20.973,20.969,75.6346855]
[1674194661570,59.52576951,20.972,20.969,75.6346855]
[1674194661906,18.92,20.971,20.969,75.6346855]
[1674194662641,35.76,20.975,20.969,75.6346855]
[1674194662835,35.74,20.984,20.969,75.6346855]
[1674194663059,10.0,20.983,20.969,75.6346855]
[1674194663258,45.75,20.983,20.969,75.6346855]
[1674194663470,15.43,20.98,20.969,75.6346855]
[1674194663675,24.57999,20.979,20.969,75.6346855]
[1674194663883,4.57999,20.978,20.969,75.6346855]
[1674194664298,18.92,20.977,20.969,75.6346855]
[1674194664515,10.0,20.976,20.969,75.6346855]
[1674194664725,18.92,20.975,20.969,75.6346855]
[1674194665373,1.92,20.975,20.969,75.6346855]
[1674194665597,55.75,20.979,20.969,75.6346855]
[1674194665808,20.0,20.979,20.969,75.6346855]
[1674194666219,35.76,20.978,20.969,75.6346855]
[1674194666652,10.0,20.977,20.969,75.6346855]
[1674194666979,40.33999,20.976,20.969,75.6346855]
[1674194667170,41.29999,20.976,20.969,75.6346855]
[1674194667379,17.96,20.975,20.969,75.6346855]
[1674194667705,0.96,20.974,20.969,75.6346855]
[1674194667888,0.96,20.973,20.969,75.6346855]
[1674194668313,4.57999,20.972,20.969,73.3838855]
[1674194668520,31.8869145,20.969,20.961,51.8869156]
[1674194668742,31.8869145,20.969,20.95,19.08208]
[1674194668743,10.0,20.967,20.95,19.08208]
[1674194668966,40.35999,20.966,20.95,19.08208]
[1674194669182,4.57999,20.965,20.95,19.08208]
[1674194669388,10.0,20.963,20.95,19.08208]
[1674194669588,15.32,20.96,20.95,19.08208]
[1674194669804,20.96,20.959,20.95,19.08208]
[1674194670021,17.0,20.958,20.95,19.08208]
[1674194670222,1.92,20.957,20.95,151.9096338]
[1674194670426,4.57999,20.956,20.923,118.5553]
[1674194670749,15.43,20.95,20.924,10.0]
[1674194670943,15.43,20.95,20.925,35.85]
[1674194670944,35.8,20.949,20.925,35.85]
[1674194671159,6.49999,20.948,20.925,35.85]
[1674194671364,15.4,20.94,20.925,35.85]
[1674194671591,0.96,20.939,20.926,10.0]
[1674194671808,1.92,20.939,20.927,35.84]
[1674194672000,4.57999,20.947,20.93,15.43]
[1674194672214,1.92,20.946,20.931,35.84]
[1674194672429,1.92,20.946,20.928,12.51179547]
[1674194672736,6.84852941,20.965,20.928,12.51179547]
[1674194672737,23.75576951,20.954,20.93,15.43]
[1674194672950,15.57,20.96,20.931,35.84]
[1674194673161,15.57,20.96,20.931,48.35179547]
[1674194673361,15.57,20.96,20.932,22.51179547]
[1674194673580,35.77,20.968,20.941,10.0]
[1674194673797,4.57999,20.967,20.942,55.82]
[1674194674109,35.78,20.966,20.942,68.33179547]
[1674194674305,40.35999,20.966,20.943,130.78249547]
[1674194674515,4.57999,20.966,20.945,10.0]
[1674194674741,4.57999,20.966,20.946,55.81]
[1674194675269,35.76,20.974,20.95,20.7]
[1674194675481,35.75,20.979,20.952,10.0]
[1674194675670,4.57999,20.978,20.953,55.8]
[1674194675881,35.76,20.977,20.953,68.31179547]
[1674194676104,40.33999,20.977,20.954,10.0]
[1674194676321,4.57999,20.977,20.955,55.79]
[1674194676534,4.57999,20.977,20.956,10.0]
[1674194676725,4.57999,20.977,20.957,35.79]
[1674194677151,4.57999,20.977,20.958,10.0]
[1674194677361,4.57999,20.977,20.959,35.79]
[1674194677572,35.75,20.979,20.959,35.79]
[1674194677573,4.57999,20.976,20.96,10.0]
[1674194678003,4.57999,20.976,20.959,35.79]
[1674194678220,10.0,20.974,20.958,10.0]
[1674194678424,40.33999,20.973,20.958,10.0]
[1674194678636,5.53999,20.972,20.958,10.0]
[1674194679274,17.96,20.971,20.958,10.0]
[1674194679492,0.96,20.97,20.958,10.0]
[1674194679676,0.96,20.969,20.958,10.0]
[1674194680120,4.57999,20.972,20.959,35.79]
[1674194680303,10.0,20.978,20.96,10.0]
[1674194680513,35.93137886,20.985,20.96,10.0]
[1674194680514,40.33999,20.977,20.961,35.78]
[1674194680722,40.33999,20.977,20.96,10.0]
[1674194681578,18.92,20.976,20.96,10.0]
[1674194681997,0.96,20.976,20.962,10.0]
[1674194682324,4.57999,20.977,20.962,10.0]
[1674194683473,4.57999,20.977,20.964,10.0]
[1674194683694,20.0,20.982,20.964,10.0]
[1674194684002,20.0,20.982,20.964,126.6641]
[1674194684329,35.74,20.984,20.965,55.78]
[1674194684507,20.71,20.99,20.966,123.2555]
[1674194684508,35.74,20.989,20.966,123.2555]
[1674194684722,4.57999,20.988,20.967,35.77]
[1674194684929,35.74,20.987,20.967,35.77]
[1674194685361,4.57999,20.988,20.968,10.0]
[1674194685554,4.57999,20.988,20.969,35.77]
[1674194686411,4.57999,20.988,20.97,10.0]
[1674194686620,4.57999,20.988,20.971,35.77]
[1674194687472,4.57999,20.988,20.972,10.0]
[1674194687669,0.96,20.987,20.972,10.0]
[1674194687877,20.0,20.99,20.973,35.76]
[1674194688110,20.0,20.992,20.974,10.0]
[1674194688329,35.73,20.991,20.974,123.0589]
[1674194688662,20.0,20.99,20.974,123.0589]
[1674194689048,0.96,20.989,20.974,123.0589]
[1674194689254,0.96,20.992,20.975,55.76]
[1674194689496,35.72,20.997,20.976,10.0]
[1674194689803,35.72,20.999,20.977,151.3728]
[1674194690023,40.29999,20.999,20.977,151.3728]
[1674194690651,4.57999,20.999,20.978,10.0]
[1674194690959,4.57999,20.999,20.979,35.75]
[1674194691173,24.57999,20.999,20.979,35.75]
[1674194691569,35.71,21.003,20.98,63.22179547]
[1674194691778,35.7,21.009,20.981,35.75]
[1674194692014,35.93137886,21.004,20.981,35.75]
[1674194692228,35.93137886,21.002,20.98,10.0]
[1674194692533,50.29999,21.001,20.98,10.0]
[1674194692749,24.57999,21.0,20.98,10.0]
[1674194692944,59.21999,20.999,20.98,10.0]
[1674194693364,10.0,20.998,20.98,10.0]
[1674194693593,54.64,20.997,20.98,10.0]
[1674194696107,35.72,20.997,20.98,10.0]
[1674194696316,35.71,21.004,20.982,10.0]
[1674194696636,35.71,21.004,20.983,35.75]
[1674194696821,35.71,21.005,20.984,10.0]
[1674194697041,35.71,21.005,20.985,174.2235]
[1674194697258,35.71,21.005,20.986,10.0]
[1674194697477,35.71,21.005,20.987,35.74]
[1674194697684,35.7,21.009,20.987,35.74]
[1674194697886,35.7,21.011,20.988,119.3961]
[1674194698211,24.57999,21.01,20.99,10.0]
[1674194698421,35.7,21.009,20.99,10.0]
[1674194699241,35.7,21.009,20.991,35.73]
[1674194699778,4.57999,21.008,20.989,35.74]
[1674194699995,36.67,21.007,20.988,119.3961]
[1674194700192,10.96,21.006,20.989,10.0]
[1674194700396,53.67,21.005,20.989,10.0]
[1674194700607,0.96,21.004,20.989,10.0]
[1674194700930,0.96,21.003,20.989,10.0]
[1674194701135,0.96,21.002,20.989,10.0]
[1674194701550,0.96,21.004,20.989,10.0]
[1674194701992,0.96,21.005,20.989,10.0]
[1674194702207,0.96,21.005,20.989,45.74]
[1674194702934,0.96,21.007,20.989,45.74]
[1674194703778,35.71,21.006,20.989,10.0]
[1674194704309,35.93137886,21.009,20.989,10.0]
[1674194704310,35.7,21.008,20.99,35.73]
[1674194704496,35.7,21.008,20.99,56.39]
[1674194704839,35.7,21.009,20.99,56.39]
[1674194705234,35.7,21.013,20.991,10.0]
[1674194705561,35.7,21.013,20.992,35.73]
[1674194705771,35.67,21.029,20.993,20.0]
[1674194706088,40.51136886,21.028,21.0,20.7]
[1674194706279,40.24999,21.027,21.001,161.6298]
[1674194706489,4.57999,21.026,21.001,161.6298]
[1674194706710,35.68,21.025,21.001,161.6298]
[1674194706918,4.57999,21.024,21.001,161.6298]
[1674194707130,35.68,21.023,21.001,161.6298]
[1674194707559,20.0,21.022,21.001,161.6298]
[1674194707769,35.68,21.021,21.001,161.6298]
[1674194708294,35.68,21.023,21.001,161.6298]
[1674194708513,35.68,21.023,21.002,20.0]
[1674194708820,35.68,21.025,21.003,35.71]
[1674194709246,35.67,21.027,21.004,30.0]
[1674194709437,28.33575951,21.024,21.003,35.71]
[1674194709636,10.0,21.022,21.001,161.6298]
[1674194709846,55.68,21.021,21.001,161.6298]
[1674194710076,17.0,21.02,21.001,161.6298]
[1674194710281,57.61,21.019,21.001,161.6298]
[1674194710484,17.0,21.018,21.001,161.6298]
[1674194710706,1.92,21.017,21.001,161.6298]
[1674194711239,99.95713837,21.016,20.995,35.73]
[1674194711427,22.53999,21.015,20.992,150.9138]
[1674194711631,61.22999,21.014,20.992,115.1838]
[1674194711842,20.68,21.01,20.992,115.1838]
[1674194712064,58.23999,21.009,20.992,115.1838]
[1674194712267,10.96,21.008,20.992,115.1838]
[1674194712473,53.67,21.007,20.992,115.1838]
[1674194712688,0.96,21.006,20.992,115.1838]
[1674194712898,0.96,21.005,20.992,115.1838]
[1674194713759,0.96,21.005,20.953,80.39334816]
[1674194713760,20.68,21.0,20.981,35.75]
[1674194714069,10.0,20.998,20.981,116.3341]
[1674194714272,56.68,20.997,20.981,116.3341]
[1674194714479,17.96,20.996,20.981,116.3341]
[1674194714694,41.26999,20.995,20.981,116.3341]
[1674194714905,17.96,20.994,20.981,116.3341]
[1674194715108,36.69,20.993,20.981,116.3341]
[1674194715321,17.96,20.992,20.981,116.3341]
[1674194715544,0.96,20.991,20.981,116.3341]
[1674194715753,0.96,20.99,20.981,116.3341]
[1674194716071,0.96,20.989,20.981,116.3341]
[1674194716386,0.96,20.988,20.981,116.3341]
[1674194716606,0.96,20.987,20.981,116.3341]
[1674194718177,35.72,20.999,20.982,10.0]
[1674194718364,20.0,20.998,20.982,10.0]
[1674194718576,10.0,21.001,20.982,10.0]
[1674194718913,55.72,21.0,20.982,10.0]
[1674194719098,10.0,20.999,20.982,10.0]
[1674194719310,55.72,20.998,20.981,116.3341]
[1674194719518,10.0,20.996,20.981,116.3341]
[1674194719753,18.92,20.995,20.981,116.3341]
[1674194720273,18.92,20.995,20.982,10.0]
[1674194720673,1.92,20.995,20.982,10.0]
[1674194720882,10.0,21.008,20.982,45.75]
[1674194721092,10.0,21.008,20.983,33.83615605]
[1674194721314,10.0,21.008,20.985,10.0]
[1674194721534,10.0,21.008,20.986,55.74]
[1674194721740,59.46576951,21.007,20.986,55.74]
[1674194721928,14.57999,21.006,20.986,55.74]
[1674194722263,36.67,21.005,20.986,55.74]
[1674194722477,17.0,21.004,20.987,10.0]
[1674194722795,0.96,21.003,20.988,20.0]
[1674194722985,0.96,21.003,20.989,10.0]
[1674194724058,35.71,21.005,20.989,10.0]
[1674194724244,45.7,21.008,20.989,45.74]
[1674194724454,20.0,21.007,20.989,45.74]
[1674194725086,30.0,21.012,20.989,45.74]
[1674194725301,35.7,21.011,20.989,45.74]
[1674194725531,20.0,21.01,20.989,45.74]
[1674194725840,20.0,21.01,20.991,10.0]
[1674194726043,35.69,21.014,20.992,55.73]
[1674194726238,24.57999,21.013,20.992,150.8588]
[1674194726445,40.27999,21.012,20.992,115.1288]
[1674194726672,30.98,21.01,20.992,115.1288]
[1674194726877,50.27999,21.009,20.992,115.1288]
[1674194727087,24.57999,21.008,20.992,115.1288]
[1674194727294,40.28999,21.007,20.992,115.1288]
[1674194727513,18.92,21.006,20.992,115.1288]
[1674194727731,35.71,21.005,20.992,115.1288]
[1674194727925,18.92,21.004,20.992,115.1288]
[1674194728146,35.71,21.003,20.992,115.1288]
[1674194728354,18.92,21.002,20.992,115.1288]
[1674194729313,0.96,21.002,20.992,115.1288]
[1674194729923,0.96,21.004,20.992,115.1288]
[1674194730366,0.96,21.005,20.993,10.0]
[1674194730569,20.0,21.008,20.993,10.0]
[1674194730891,20.0,21.012,20.993,10.0]
[1674194731102,35.7,21.011,20.993,10.0]
[1674194731316,20.0,21.01,20.993,10.0]
[1674194731526,35.7,21.009,20.993,10.0]
[1674194731736,20.0,21.008,20.993,10.0]
[1674194731950,20.0,21.008,20.992,115.1288]
[1674194732147,35.71,21.007,20.993,10.0]
[1674194733206,0.96,21.006,20.993,10.0]
[1674194733423,56.67,21.007,20.993,10.0]
[1674194733606,56.67,21.007,20.992,115.1288]
[1674194733815,56.67,21.007,20.993,10.0]
[1674194734047,17.0,21.006,20.993,10.0]
[1674194734258,37.63,21.005,20.959,24.53033532]
[1674194734446,37.63,21.005,20.984,10.0]
[1674194734447,10.0,21.003,20.984,10.0]
[1674194734657,37.63,21.002,20.984,10.0]
[1674194734867,17.0,21.001,20.989,128.367]
[1674194735289,17.0,21.001,20.99,35.73]
[1674194735714,17.0,21.001,20.991,10.0]
[1674194735929,10.0,21.011,20.991,10.0]
[1674194736139,55.7,21.01,20.991,10.0]
[1674194736353,79.45576951,21.01,20.991,10.0]
[1674194736572,23.75576951,21.009,20.991,10.0]
[1674194736762,55.7,21.008,20.991,10.0]
[1674194737190,0.96,21.007,20.991,10.0]
[1674194737506,36.67,21.006,20.991,10.0]
[1674194737725,17.96,21.005,20.991,10.0]
[1674194738048,0.96,21.004,20.991,10.0]
[1674194739512,24.71576951,21.004,20.986,35.74]
[1674194739709,10.0,21.002,20.984,10.0]
[1674194739917,42.21999,21.001,20.984,10.0]
[1674194740124,27.0,21.0,20.984,10.0]
[1674194740454,1.92,20.999,20.984,10.0]
[1674194740686,25.67576951,20.999,20.984,10.0]
[1674194740904,17.0,20.998,20.984,10.0]
[1674194741224,1.92,20.997,20.984,10.0]
[1674194742477,1.92,20.997,20.983,113.522]
[1674194742674,10.0,20.996,20.983,113.522]
[1674194742879,1.92,20.995,20.983,113.522]
[1674194743096,0.96,20.994,20.984,10.0]
[1674194743311,21.92,20.997,20.983,113.522]
[1674194743523,17.0,20.996,20.983,113.522]
[1674194743724,1.92,20.995,20.983,113.522]
[1674194743939,10.0,20.994,20.983,113.522]
[1674194744259,20.0,20.997,20.983,113.522]
[1674194744460,10.0,20.997,20.983,113.522]
[1674194745722,10.0,20.995,20.983,113.522]
[1674194745937,0.96,20.994,20.983,113.522]
[1674194746341,0.96,20.994,20.978,35.76]
[1674194746567,0.96,20.993,20.978,35.76]
[1674194746762,15.53999,20.993,20.972,45.77]
[1674194746980,0.96,20.992,20.978,30.0]
[1674194747200,0.96,20.991,20.978,30.0]
[1674194747412,0.96,20.99,20.979,10.0]
[1674194747603,0.96,20.989,20.979,10.0]
[1674194747935,0.96,20.988,20.979,10.0]
[1674194748151,0.96,20.987,20.979,10.0]
[1674194748351,0.96,20.986,20.979,10.0]
[1674194748556,0.96,20.985,20.979,10.0]
[1674194748882,17.0,20.992,20.979,10.0]
[1674194749100,0.96,20.991,20.979,10.0]
[1674194749412,0.96,20.991,20.98,118.6932]
[1674194749595,0.96,20.991,20.981,10.0]
[1674194750457,0.96,20.99,20.981,10.0]
[1674194750654,0.96,20.989,20.981,10.0]
[1674194751187,0.96,20.988,20.981,10.0]
[1674194751409,0.96,20.987,20.981,10.0]
[1674194751954,0.96,20.987,20.98,154.4432]
[1674194752247,0.96,20.987,20.977,125.6128]
[1674194752248,0.96,20.986,20.977,115.6128]
[1674194752441,36.7,20.986,20.977,115.6128]
[1674194752653,10.0,20.984,20.977,115.6128]
[1674194752858,18.92,20.983,20.977,115.6128]